Workbook

Sheet Skema 1
A1: Region Nordjylland, somatiske sygehuse.
B2: Skema 1: Udgifter og indtægter på sygehusene/enhederne, eksklusiv omkostningssted 0001, Fælleskonto. (1.000 kr.)
A5: Sygehus | C5: 2023 | D5: 2022 | E5: 2021 | F5: 2020 | G5: Δ2022-2023 | H5: % afvigelse | I5: Begrundelse
A6: Aalborg Universitetshospital | G6: =IF(ISERROR(#REF! -#REF!)=TRUE,"",#REF! -#REF!) ->  | H6: =IF(ISERROR((((#REF! -#REF!)/#REF!)*100)=TRUE),"",IF((((#REF! -#REF!)/#REF!)*100)<-7,FIXED(((#REF! -#REF!)/#REF!)*100, 1,TRUE) &"%" & "▼",IF((((#REF! -#REF!)/#REF!)*100)>7,FIXED(((#REF! -#REF!)/#REF!)*100, 1,TRUE) &"%" &"▲",FIXED(((#REF! -#REF!)/#REF!)*100, 1,TRUE)&"%"))) -> 
A7: Aalborg Universitetshospital | B7: Hovedart 1: Lønninger | C7: 4119493.312 | D7: 4097728.888 | E7: 3882922.331 | F7: 3719064.845 | G7: =IF(ISERROR(C7- D7)=TRUE,"",C7 - D7) -> 21764.424 | H7: =IF(ISERROR((((C7- D7)/D7)*100)=TRUE),"",IF((((C7- D7)/D7)*100)<-7,FIXED(((C7- D7)/D7)*100, 1,TRUE) &"%" & "▼",IF((((C7- D7)/D7)*100)>7,FIXED(((C7- D7)/D7)*100, 1,TRUE) &"%" &"▲",FIXED(((C7- D7)/D7)*100, 1,TRUE)&"%"))) -> 0,5%
A8: Aalborg Universitetshospital | B8: Hovedart 2: Varekøb | C8: 817403.874 | D8: 792023.802 | E8: 763008.744 | F8: 734012.857 | G8: 25380.072 | H8: 3,2%
A9: Aalborg Universitetshospital | B9: Hovedart 4: Tjenesteydelser m.v. | C9: 716547.803 | D9: 760650.37 | E9: 641318.5 | F9: 551677.469 | G9: -44102.567 | H9: -5,8%
A10: Aalborg Universitetshospital | B10: Hovedart 5: Tilskud og overførsler | C10: 20 | D10: 20 | E10: 20 | F10: 40 | G10: 0 | H10: 0,0%
A11: Aalborg Universitetshospital | B11: Hovedart 6: Finansudgifter | G11: 0
A12: Aalborg Universitetshospital | B12: Hovedart 7: Indtægter | C12: -136232.336 | D12: -127107.725 | E12: -119240.532 | F12: -88417.681 | G12: -9124.611 | H12: 7,2%▲
A13: Aalborg Universitetshospital | B13: Hovedart 8: Finansindtægter | G13: 0
A14: Aalborg Universitetshospital | B14: Hovedart 9: Interne udgifter og indtægter | C14: 1032626.47 | D14: 1005242.131 | E14: 981822.822 | F14: 1012927.961 | G14: 27384.339 | H14: 2,7%
A15: Aalborg Universitetshospital | B15: I alt | C15: =SUMIFS((C7:C14),(A7:A14),A15) -> 6549859.123 | D15: =SUMIFS((D7:D14),(A7:A14),A15) -> 6528557.466 | E15: =SUMIFS((E7:E14),(A7:A14),A15) -> 6149851.865 | F15: =SUMIFS((F7:F14),(A7:A14),A15) -> 5929305.451 | G15: 21301.657 | H15: 0,3%
A16: Regionshospital Nordjylland | G16: 0
A17: Regionshospital Nordjylland | B17: Hovedart 1: Lønninger | C17: 972686.608 | D17: 983363.104 | E17: 928182.459 | F17: 886869.999 | G17: -10676.496 | H17: -1,1%
A18: Regionshospital Nordjylland | B18: Hovedart 2: Varekøb | C18: 151082.732 | D18: 158622.42 | E18: 154810.161 | F18: 127039.188 | G18: -7539.688 | H18: -4,8%
A19: Regionshospital Nordjylland | B19: Hovedart 4: Tjenesteydelser m.v. | C19: 175313.613 | D19: 160416.3 | E19: 139363.971 | F19: 129678.829 | G19: 14897.313 | H19: 9,3%▲
A20: Regionshospital Nordjylland | B20: Hovedart 5: Tilskud og overførsler | C20: 10 | D20: 10 | F20: 10 | G20: 0 | H20: 0,0%
A21: Regionshospital Nordjylland | B21: Hovedart 6: Finansudgifter | G21: 0
A22: Regionshospital Nordjylland | B22: Hovedart 7: Indtægter | C22: -28026.983 | D22: -26212.526 | E22: -25001.606 | F22: -17096.726 | G22: -1814.457 | H22: 6,9%
A23: Regionshospital Nordjylland | B23: Hovedart 8: Finansindtægter | C23: -49.999 | D23: -84.665 | E23: -99.365 | F23: -91.665 | G23: 34.666 | H23: -40,9%▼
A24: Regionshospital Nordjylland | B24: Hovedart 9: Interne udgifter og indtægter | C24: 45812.523 | D24: 49662.545 | E24: 44486.791 | F24: 40889.441 | G24: -3850.022 | H24: -7,8%▼
A25: Regionshospital Nordjylland | B25: I alt | C25: =SUMIFS((C7:C24),(A7:A24),A25) -> 1316828.494 | D25: =SUMIFS((D7:D24),(A7:A24),A25) -> 1325777.178 | E25: =SUMIFS((E7:E24),(A7:A24),A25) -> 1241742.411 | F25: =SUMIFS((F7:F24),(A7:A24),A25) -> 1167299.066 | G25: -8948.684 | H25: -0,7%
A26: Øvrige i Region Nordjylland | G26: 0
A27: Øvrige i Region Nordjylland | B27: Hovedart 1: Lønninger | G27: 0
A28: Øvrige i Region Nordjylland | B28: Hovedart 2: Varekøb | G28: 0
A29: Øvrige i Region Nordjylland | B29: Hovedart 4: Tjenesteydelser m.v. | G29: 0
A30: Øvrige i Region Nordjylland | B30: Hovedart 5: Tilskud og overførsler | G30: 0
A31: Øvrige i Region Nordjylland | B31: Hovedart 6: Finansudgifter | G31: 0
A32: Øvrige i Region Nordjylland | B32: Hovedart 7: Indtægter | G32: 0
A33: Øvrige i Region Nordjylland | B33: Hovedart 8: Finansindtægter | G33: 0
A34: Øvrige i Region Nordjylland | B34: Hovedart 9: Interne udgifter og indtægter | G34: 0
A35: Øvrige i Region Nordjylland | B35: I alt | C35: =SUMIFS((C7:C34),(A7:A34),A35) -> 0 | D35: =SUMIFS((D7:D34),(A7:A34),A35) -> 0 | E35: =SUMIFS((E7:E34),(A7:A34),A35) -> 0 | F35: =SUMIFS((F7:F34),(A7:A34),A35) -> 0 | G35: 0
A36: Ikke fordelte udgifter og indtægter | G36: 0
A37: Ikke fordelte udgifter og indtægter | B37: Hovedart 1: Lønninger | G37: 0
A38: Ikke fordelte udgifter og indtægter | B38: Hovedart 2: Varekøb | G38: 0
A39: Ikke fordelte udgifter og indtægter | B39: Hovedart 4: Tjenesteydelser m.v. | G39: 0
A40: Ikke fordelte udgifter og indtægter | B40: Hovedart 5: Tilskud og overførsler | G40: 0
A41: Ikke fordelte udgifter og indtægter | B41: Hovedart 6: Finansudgifter | G41: 0
A42: Ikke fordelte udgifter og indtægter | B42: Hovedart 7: Indtægter | G42: 0
A43: Ikke fordelte udgifter og indtægter | B43: Hovedart 8: Finansindtægter | G43: 0
A44: Ikke fordelte udgifter og indtægter | B44: Hovedart 9: Interne udgifter og indtægter | G44: 0
A45: Ikke fordelte udgifter og indtægter | B45: I alt | C45: =SUMIFS((C7:C44),(A7:A44),A45) -> 0 | D45: =SUMIFS((D7:D44),(A7:A44),A45) -> 0 | E45: =SUMIFS((E7:E44),(A7:A44),A45) -> 0 | F45: =SUMIFS((F7:F44),(A7:A44),A45) -> 0 | G45: 0

Sheet Skema 2
A1: Region Nordjylland, somatiske sygehuse.
B2: Skema 2: Fællesudgifter og -indtægter vedrørende sygehusene. (1.000 kr.)
A5: Sygehus | C5: 2023 | D5: 2022 | E5: 2021 | F5: 2020 | G5: Δ2022-2023 | H5: % afvigelse | I5: Begrundelse
A6: Aalborg Universitetshospital | G6: =IF(ISERROR(#REF! -#REF!)=TRUE,"",#REF! -#REF!) ->  | H6: =IF(ISERROR((((#REF! -#REF!)/#REF!)*100)=TRUE),"",IF((((#REF! -#REF!)/#REF!)*100)<-7,FIXED(((#REF! -#REF!)/#REF!)*100, 1,TRUE) &"%" & "▼",IF((((#REF! -#REF!)/#REF!)*100)>7,FIXED(((#REF! -#REF!)/#REF!)*100, 1,TRUE) &"%" &"▲",FIXED(((#REF! -#REF!)/#REF!)*100, 1,TRUE)&"%"))) -> 
A7: Aalborg Universitetshospital | B7: Hovedart 1: Lønninger | C7: 238263.117 | D7: 213670.019 | E7: 205708.287 | F7: 189888.145 | G7: =IF(ISERROR(C7- D7)=TRUE,"",C7 - D7) -> 24593.098 | H7: =IF(ISERROR((((C7- D7)/D7)*100)=TRUE),"",IF((((C7- D7)/D7)*100)<-7,FIXED(((C7- D7)/D7)*100, 1,TRUE) &"%" & "▼",IF((((C7- D7)/D7)*100)>7,FIXED(((C7- D7)/D7)*100, 1,TRUE) &"%" &"▲",FIXED(((C7- D7)/D7)*100, 1,TRUE)&"%"))) -> 11,5%▲
A8: Aalborg Universitetshospital | B8: Hovedart 2: Varekøb | C8: 729044.125 | D8: 762565.793 | E8: 787148.912 | F8: 763735.359 | G8: -33521.668 | H8: -4,4%
A9: Aalborg Universitetshospital | B9: Hovedart 4: Tjenesteydelser m.v. | C9: 168128.39 | D9: 186072.012 | E9: 183719.293 | F9: 137400.706 | G9: -17943.622 | H9: -9,6%▼
A10: Aalborg Universitetshospital | B10: Hovedart 5: Tilskud og overførsler | C10: 4528.584 | G10: 4528.584
A11: Aalborg Universitetshospital | B11: Hovedart 6: Finansudgifter | G11: 0
A12: Aalborg Universitetshospital | B12: Hovedart 7: Indtægter | C12: -22715.379 | D12: -11253.079 | E12: -10255.995 | F12: -11225.928 | G12: -11462.3 | H12: 101,9%▲
A13: Aalborg Universitetshospital | B13: Hovedart 8: Finansindtægter | C13: -28309.667 | G13: -28309.667
A14: Aalborg Universitetshospital | B14: Hovedart 9: Interne udgifter og indtægter | C14: -813461.252 | D14: -802172.995 | E14: -801061.366 | F14: -794479.575 | G14: -11288.257 | H14: 1,4%
A15: Aalborg Universitetshospital | B15: I alt | C15: =SUMIFS((C7:C14),(A7:A14),A15) -> 275477.918 | D15: =SUMIFS((D7:D14),(A7:A14),A15) -> 348881.75 | E15: =SUMIFS((E7:E14),(A7:A14),A15) -> 365259.131 | F15: =SUMIFS((F7:F14),(A7:A14),A15) -> 285318.707 | G15: -73403.832 | H15: -21,0%▼
A16: Regionshospital Nordjylland | G16: 0
A17: Regionshospital Nordjylland | B17: Hovedart 1: Lønninger | C17: 45282.816 | D17: 41223.769 | E17: 38594.908 | F17: 34103.51 | G17: 4059.047 | H17: 9,8%▲
A18: Regionshospital Nordjylland | B18: Hovedart 2: Varekøb | C18: 58727.164 | D18: 61938.784 | E18: 60765.925 | F18: 53606.631 | G18: -3211.62 | H18: -5,2%
A19: Regionshospital Nordjylland | B19: Hovedart 4: Tjenesteydelser m.v. | C19: 46274.005 | D19: 51546.809 | E19: 47123.263 | F19: 35763.731 | G19: -5272.804 | H19: -10,2%▼
A20: Regionshospital Nordjylland | B20: Hovedart 5: Tilskud og overførsler | C20: 910.923 | G20: 910.923
A21: Regionshospital Nordjylland | B21: Hovedart 6: Finansudgifter | G21: 0
A22: Regionshospital Nordjylland | B22: Hovedart 7: Indtægter | C22: -3878.732 | D22: -1800.801 | E22: -1499.507 | F22: -1572.366 | G22: -2077.931 | H22: 115,4%▲
A23: Regionshospital Nordjylland | B23: Hovedart 8: Finansindtægter | C23: -5694.482 | G23: -5694.482
A24: Regionshospital Nordjylland | B24: Hovedart 9: Interne udgifter og indtægter | C24: -65351.145 | D24: -67451.672 | E24: -59444.012 | F24: -53003.801 | G24: 2100.527 | H24: -3,1%
A25: Regionshospital Nordjylland | B25: I alt | C25: =SUMIFS((C7:C24),(A7:A24),A25) -> 76270.549 | D25: =SUMIFS((D7:D24),(A7:A24),A25) -> 85456.889 | E25: =SUMIFS((E7:E24),(A7:A24),A25) -> 85540.577 | F25: =SUMIFS((F7:F24),(A7:A24),A25) -> 68897.705 | G25: -9186.34 | H25: -10,7%▼
A26: Øvrige i Region Nordjylland | G26: 0
A27: Øvrige i Region Nordjylland | B27: Hovedart 1: Lønninger | G27: 0
A28: Øvrige i Region Nordjylland | B28: Hovedart 2: Varekøb | G28: 0
A29: Øvrige i Region Nordjylland | B29: Hovedart 4: Tjenesteydelser m.v. | G29: 0
A30: Øvrige i Region Nordjylland | B30: Hovedart 5: Tilskud og overførsler | G30: 0
A31: Øvrige i Region Nordjylland | B31: Hovedart 6: Finansudgifter | G31: 0
A32: Øvrige i Region Nordjylland | B32: Hovedart 7: Indtægter | G32: 0
A33: Øvrige i Region Nordjylland | B33: Hovedart 8: Finansindtægter | G33: 0
A34: Øvrige i Region Nordjylland | B34: Hovedart 9: Interne udgifter og indtægter | G34: 0
A35: Øvrige i Region Nordjylland | B35: I alt | C35: =SUMIFS((C7:C34),(A7:A34),A35) -> 0 | D35: =SUMIFS((D7:D34),(A7:A34),A35) -> 0 | E35: =SUMIFS((E7:E34),(A7:A34),A35) -> 0 | F35: =SUMIFS((F7:F34),(A7:A34),A35) -> 0 | G35: 0
A36: Ikke fordelte udgifter og indtægter | G36: 0
A37: Ikke fordelte udgifter og indtægter | B37: Hovedart 1: Lønninger | C37: 502667.871 | D37: 526616.618 | E37: 474529.917 | F37: 317972.698 | G37: -23948.747 | H37: -4,5%
A38: Ikke fordelte udgifter og indtægter | B38: Hovedart 2: Varekøb | C38: 106440.841 | D38: 248200.674 | E38: 217296.878 | F38: 221838.074 | G38: -141759.833 | H38: -57,1%▼
A39: Ikke fordelte udgifter og indtægter | B39: Hovedart 4: Tjenesteydelser m.v. | C39: 1347766.116 | D39: 1463375.439 | E39: 1726426.625 | F39: 1592790.493 | G39: -115609.323 | H39: -7,9%▼
A40: Ikke fordelte udgifter og indtægter | B40: Hovedart 5: Tilskud og overførsler | C40: 163399.036 | D40: 182814.539 | E40: 141314.972 | F40: 204873.023 | G40: -19415.503 | H40: -10,6%▼
A41: Ikke fordelte udgifter og indtægter | B41: Hovedart 6: Finansudgifter | C41: 40164.815 | D41: 20522.368 | G41: 19642.447 | H41: 95,7%▲
A42: Ikke fordelte udgifter og indtægter | B42: Hovedart 7: Indtægter | C42: -630129.231 | D42: -592961.583 | E42: -569783.937 | F42: -540685.582 | G42: -37167.648 | H42: 6,3%
A43: Ikke fordelte udgifter og indtægter | B43: Hovedart 8: Finansindtægter | C43: 0 | D43: -282367.758 | E43: -364987.826 | F43: -63134.344 | G43: 282367.758 | H43: -100,0%▼
A44: Ikke fordelte udgifter og indtægter | B44: Hovedart 9: Interne udgifter og indtægter | C44: -311195.747 | D44: -311510.456 | E44: -284567.347 | F44: -317387.613 | G44: 314.709 | H44: -0,1%
A45: Ikke fordelte udgifter og indtægter | B45: I alt | C45: =SUMIFS((C7:C44),(A7:A44),A45) -> 1219113.701 | D45: =SUMIFS((D7:D44),(A7:A44),A45) -> 1254689.841 | E45: =SUMIFS((E7:E44),(A7:A44),A45) -> 1340229.282 | F45: =SUMIFS((F7:F44),(A7:A44),A45) -> 1416266.749 | G45: -35576.14 | H45: -2,8%

Sheet Skema 3
A1: Region Nordjylland, somatiske sygehuse.
B2: Skema 3:Regionale fællesudgifter og -indtægter. (1.000 kr.)
A5: Sygehus | C5: 2023 | D5: 2022 | E5: 2021 | F5: 2020 | G5: Δ2022-2023 | H5: % afvigelse | I5: Begrundelse
A6: Aalborg Universitetshospital | G6: =IF(ISERROR(#REF! -#REF!)=TRUE,"",#REF! -#REF!) ->  | H6: =IF(ISERROR((((#REF! -#REF!)/#REF!)*100)=TRUE),"",IF((((#REF! -#REF!)/#REF!)*100)<-7,FIXED(((#REF! -#REF!)/#REF!)*100, 1,TRUE) &"%" & "▼",IF((((#REF! -#REF!)/#REF!)*100)>7,FIXED(((#REF! -#REF!)/#REF!)*100, 1,TRUE) &"%" &"▲",FIXED(((#REF! -#REF!)/#REF!)*100, 1,TRUE)&"%"))) -> 
A7: Aalborg Universitetshospital | B7: 1.70.50: Andel af fællesudgifter | C7: 146401.498 | D7: 134435.846 | E7: 127097.14 | F7: 118303.09 | G7: =IF(ISERROR(C7- D7)=TRUE,"",C7 - D7) -> 11965.652 | H7: =IF(ISERROR((((C7- D7)/D7)*100)=TRUE),"",IF((((C7- D7)/D7)*100)<-7,FIXED(((C7- D7)/D7)*100, 1,TRUE) &"%" & "▼",IF((((C7- D7)/D7)*100)>7,FIXED(((C7- D7)/D7)*100, 1,TRUE) &"%" &"▲",FIXED(((C7- D7)/D7)*100, 1,TRUE)&"%"))) -> 8,9%▲
A8: Aalborg Universitetshospital | B8: 1.60.40: Andel af central administration af sundhed (til og med 2019) | G8: 0
A9: Aalborg Universitetshospital | B9: 1.60.41: Andel af øvrige udgifter og indtægter | C9: 2268.864 | D9: 1863.783 | E9: 1673.695 | F9: 2282.953 | G9: 405.081 | H9: 21,7%▲
A10: Aalborg Universitetshospital | B10: 1.50.33: Andel af central administration af sundhed (ekskl. psykiatri) | C10: 17824.387 | D10: 19543.841 | E10: 19909.414 | F10: 17850.707 | G10: -1719.454 | H10: -8,8%▼
A11: Aalborg Universitetshospital | B11: 1.50.35: Administration af det psykiatriske område (kun central del) | G11: 0
A12: Aalborg Universitetshospital | B12: I alt | C12: =SUMIFS((C7:C11),(A7:A11),A12) -> 166494.749 | D12: =SUMIFS((D7:D11),(A7:A11),A12) -> 155843.47 | E12: =SUMIFS((E7:E11),(A7:A11),A12) -> 148680.249 | F12: =SUMIFS((F7:F11),(A7:A11),A12) -> 138436.75 | G12: 10651.279 | H12: 6,8%
A13: Regionshospital Nordjylland | G13: 0
A14: Regionshospital Nordjylland | B14: 1.70.50: Andel af fællesudgifter | C14: 41159.904 | D14: 38007.592 | E14: 35821.122 | F14: 32772.188 | G14: 3152.312 | H14: 8,3%▲
A15: Regionshospital Nordjylland | B15: 1.60.40: Andel af central administration af sundhed (til og med 2019) | G15: 0
A16: Regionshospital Nordjylland | B16: 1.60.41: Andel af øvrige udgifter og indtægter | C16: 637.876 | D16: 526.927 | E16: 471.715 | F16: 632.421 | G16: 110.949 | H16: 21,1%▲
A17: Regionshospital Nordjylland | B17: 1.50.33: Andel af central administration af sundhed (ekskl. psykiatri) | C17: 5011.209 | D17: 5525.419 | E17: 5611.279 | F17: 4944.983 | G17: -514.21 | H17: -9,3%▼
A18: Regionshospital Nordjylland | B18: 1.50.35: Administration af det psykiatriske område (kun central del) | G18: 0
A19: Regionshospital Nordjylland | B19: I alt | C19: =SUMIFS((C7:C18),(A7:A18),A19) -> 46808.989 | D19: =SUMIFS((D7:D18),(A7:A18),A19) -> 44059.938 | E19: =SUMIFS((E7:E18),(A7:A18),A19) -> 41904.116 | F19: =SUMIFS((F7:F18),(A7:A18),A19) -> 38349.592 | G19: 2749.051 | H19: 6,2%
A20: Øvrige i Region Nordjylland | G20: 0
A21: Øvrige i Region Nordjylland | B21: 1.70.50: Andel af fællesudgifter | G21: 0
A22: Øvrige i Region Nordjylland | B22: 1.60.40: Andel af central administration af sundhed (til og med 2019) | G22: 0
A23: Øvrige i Region Nordjylland | B23: 1.60.41: Andel af øvrige udgifter og indtægter | G23: 0
A24: Øvrige i Region Nordjylland | B24: 1.50.33: Andel af central administration af sundhed (ekskl. psykiatri) | G24: 0
A25: Øvrige i Region Nordjylland | B25: 1.50.35: Administration af det psykiatriske område (kun central del) | G25: 0
A26: Øvrige i Region Nordjylland | B26: I alt | C26: =SUMIFS((C7:C25),(A7:A25),A26) -> 0 | D26: =SUMIFS((D7:D25),(A7:A25),A26) -> 0 | E26: =SUMIFS((E7:E25),(A7:A25),A26) -> 0 | F26: =SUMIFS((F7:F25),(A7:A25),A26) -> 0 | G26: 0
A27: Ikke fordelte udgifter og indtægter | G27: 0
A28: Ikke fordelte udgifter og indtægter | B28: 1.70.50: Andel af fællesudgifter | C28: 254008.497 | D28: 240988.776 | E28: 223985.342 | F28: 201076.345 | G28: 13019.721 | H28: 5,4%
A29: Ikke fordelte udgifter og indtægter | B29: 1.60.40: Andel af central administration af sundhed (til og med 2019) | G29: 0
A30: Ikke fordelte udgifter og indtægter | B30: 1.60.41: Andel af øvrige udgifter og indtægter | C30: 2788.303 | D30: 2380.737 | E30: 2123.673 | F30: 1341.734 | G30: 407.566 | H30: 17,1%▲
A31: Ikke fordelte udgifter og indtægter | B31: 1.50.33: Andel af central administration af sundhed (ekskl. psykiatri) | C31: 18607.429 | D31: 20860.72 | E31: 21117.876 | F31: 19198.416 | G31: -2253.291 | H31: -10,8%▼
A32: Ikke fordelte udgifter og indtægter | B32: 1.50.35: Administration af det psykiatriske område (kun central del) | G32: 0
A33: Ikke fordelte udgifter og indtægter | B33: I alt | C33: =SUMIFS((C7:C32),(A7:A32),A33) -> 275404.229 | D33: =SUMIFS((D7:D32),(A7:A32),A33) -> 264230.233 | E33: =SUMIFS((E7:E32),(A7:A32),A33) -> 247226.891 | F33: =SUMIFS((F7:F32),(A7:A32),A33) -> 221616.495 | G33: 11173.996 | H33: 4,2%

Sheet Skema 4
A1: Region Nordjylland, somatiske sygehuse.
B2: Skema 4: Udgifter og indtægter til og fra psykiatriske afdelinger konteret på somatiske sygehuse. (1.000 kr.)
A5: Sygehus | C5: 2023 | D5: 2022 | E5: 2021 | F5: 2020 | G5: Δ2022-2023 | H5: % afvigelse | I5: Begrundelse
A6: Aalborg Universitetshospital | G6: =IF(ISERROR(#REF! -#REF!)=TRUE,"",#REF! -#REF!) ->  | H6: =IF(ISERROR((((#REF! -#REF!)/#REF!)*100)=TRUE),"",IF((((#REF! -#REF!)/#REF!)*100)<-7,FIXED(((#REF! -#REF!)/#REF!)*100, 1,TRUE) &"%" & "▼",IF((((#REF! -#REF!)/#REF!)*100)>7,FIXED(((#REF! -#REF!)/#REF!)*100, 1,TRUE) &"%" &"▲",FIXED(((#REF! -#REF!)/#REF!)*100, 1,TRUE)&"%"))) -> 
A7: Aalborg Universitetshospital | B7: Korrektion | G7: =IF(ISERROR(C7- D7)=TRUE,"",C7 - D7) -> 0 | H7: =IF(ISERROR((((C7- D7)/D7)*100)=TRUE),"",IF((((C7- D7)/D7)*100)<-7,FIXED(((C7- D7)/D7)*100, 1,TRUE) &"%" & "▼",IF((((C7- D7)/D7)*100)>7,FIXED(((C7- D7)/D7)*100, 1,TRUE) &"%" &"▲",FIXED(((C7- D7)/D7)*100, 1,TRUE)&"%"))) -> 
A8: Aalborg Universitetshospital | B8: Lønudg. på psyk. afd.,somatiske sygehuse | G8: 0
A9: Aalborg Universitetshospital | B9: Øvrige udg. til psyk. afd.,somatiske sygehuse | G9: 0
A10: Aalborg Universitetshospital | B10: I alt | C10: =SUMIFS((C7:C9),(A7:A9),A10) -> 0 | D10: =SUMIFS((D7:D9),(A7:A9),A10) -> 0 | E10: =SUMIFS((E7:E9),(A7:A9),A10) -> 0 | F10: =SUMIFS((F7:F9),(A7:A9),A10) -> 0 | G10: 0
A11: Regionshospital Nordjylland | G11: 0
A12: Regionshospital Nordjylland | B12: Korrektion | G12: 0
A13: Regionshospital Nordjylland | B13: Lønudg. på psyk. afd.,somatiske sygehuse | G13: 0
A14: Regionshospital Nordjylland | B14: Øvrige udg. til psyk. afd.,somatiske sygehuse | G14: 0
A15: Regionshospital Nordjylland | B15: I alt | C15: =SUMIFS((C7:C14),(A7:A14),A15) -> 0 | D15: =SUMIFS((D7:D14),(A7:A14),A15) -> 0 | E15: =SUMIFS((E7:E14),(A7:A14),A15) -> 0 | F15: =SUMIFS((F7:F14),(A7:A14),A15) -> 0 | G15: 0
A16: Øvrige i Region Nordjylland | G16: 0
A17: Øvrige i Region Nordjylland | B17: Korrektion | G17: 0
A18: Øvrige i Region Nordjylland | B18: Lønudg. på psyk. afd.,somatiske sygehuse | G18: 0
A19: Øvrige i Region Nordjylland | B19: Øvrige udg. til psyk. afd.,somatiske sygehuse | G19: 0
A20: Øvrige i Region Nordjylland | B20: I alt | C20: =SUMIFS((C7:C19),(A7:A19),A20) -> 0 | D20: =SUMIFS((D7:D19),(A7:A19),A20) -> 0 | E20: =SUMIFS((E7:E19),(A7:A19),A20) -> 0 | F20: =SUMIFS((F7:F19),(A7:A19),A20) -> 0 | G20: 0
A21: Ikke fordelte udgifter og indtægter | G21: 0
A22: Ikke fordelte udgifter og indtægter | B22: Korrektion | G22: 0
A23: Ikke fordelte udgifter og indtægter | B23: Lønudg. på psyk. afd.,somatiske sygehuse | G23: 0
A24: Ikke fordelte udgifter og indtægter | B24: Øvrige udg. til psyk. afd.,somatiske sygehuse | G24: 0
A25: Ikke fordelte udgifter og indtægter | B25: I alt | C25: =SUMIFS((C7:C24),(A7:A24),A25) -> 0 | D25: =SUMIFS((D7:D24),(A7:A24),A25) -> 0 | E25: =SUMIFS((E7:E24),(A7:A24),A25) -> 0 | F25: =SUMIFS((F7:F24),(A7:A24),A25) -> 0 | G25: 0

Sheet Skema 5
A1: Region Nordjylland, somatiske sygehuse.
B2: Skema 5: Leasing- og huslejeudgifter. (1.000 kr.)
A5: Sygehus | C5: 2023 | D5: 2022 | E5: 2021 | F5: 2020 | G5: Δ2022-2023 | H5: % afvigelse | I5: Begrundelse
A6: Aalborg Universitetshospital | G6: =IF(ISERROR(#REF! -#REF!)=TRUE,"",#REF! -#REF!) ->  | H6: =IF(ISERROR((((#REF! -#REF!)/#REF!)*100)=TRUE),"",IF((((#REF! -#REF!)/#REF!)*100)<-7,FIXED(((#REF! -#REF!)/#REF!)*100, 1,TRUE) &"%" & "▼",IF((((#REF! -#REF!)/#REF!)*100)>7,FIXED(((#REF! -#REF!)/#REF!)*100, 1,TRUE) &"%" &"▲",FIXED(((#REF! -#REF!)/#REF!)*100, 1,TRUE)&"%"))) -> 
A7: Aalborg Universitetshospital | B7: Andre udgifter | G7: =IF(ISERROR(C7- D7)=TRUE,"",C7 - D7) -> 0 | H7: =IF(ISERROR((((C7- D7)/D7)*100)=TRUE),"",IF((((C7- D7)/D7)*100)<-7,FIXED(((C7- D7)/D7)*100, 1,TRUE) &"%" & "▼",IF((((C7- D7)/D7)*100)>7,FIXED(((C7- D7)/D7)*100, 1,TRUE) &"%" &"▲",FIXED(((C7- D7)/D7)*100, 1,TRUE)&"%"))) -> 
A8: Aalborg Universitetshospital | B8: Leasing- og lejeudgifter | C8: 13524.506 | D8: 29524.615 | E8: 21137.186 | F8: 22286.614 | G8: -16000.109 | H8: -54,2%▼
A9: Aalborg Universitetshospital | B9: Huslejeudgifter | C9: 17544.987 | D9: 15666.038 | E9: 14834.881 | F9: 14079.482 | G9: 1878.949 | H9: 12,0%▲
A10: Aalborg Universitetshospital | B10: I alt | C10: =SUMIFS((C7:C9),(A7:A9),A10) -> 31069.493 | D10: =SUMIFS((D7:D9),(A7:A9),A10) -> 45190.653 | E10: =SUMIFS((E7:E9),(A7:A9),A10) -> 35972.067 | F10: =SUMIFS((F7:F9),(A7:A9),A10) -> 36366.096 | G10: -14121.16 | H10: -31,2%▼
A11: Regionshospital Nordjylland | G11: 0
A12: Regionshospital Nordjylland | B12: Andre udgifter | G12: 0
A13: Regionshospital Nordjylland | B13: Leasing- og lejeudgifter | C13: 3223.56 | D13: 7513.509 | E13: 6597.66 | F13: 6031.892 | G13: -4289.949 | H13: -57,1%▼
A14: Regionshospital Nordjylland | B14: Huslejeudgifter | C14: 497.848 | D14: 525.504 | E14: 469.779 | F14: 452.896 | G14: -27.656 | H14: -5,3%
A15: Regionshospital Nordjylland | B15: I alt | C15: =SUMIFS((C7:C14),(A7:A14),A15) -> 3721.408 | D15: =SUMIFS((D7:D14),(A7:A14),A15) -> 8039.013 | E15: =SUMIFS((E7:E14),(A7:A14),A15) -> 7067.439 | F15: =SUMIFS((F7:F14),(A7:A14),A15) -> 6484.788 | G15: -4317.605 | H15: -53,7%▼
A16: Øvrige i Region Nordjylland | G16: 0
A17: Øvrige i Region Nordjylland | B17: Andre udgifter | G17: 0
A18: Øvrige i Region Nordjylland | B18: Leasing- og lejeudgifter | G18: 0
A19: Øvrige i Region Nordjylland | B19: Huslejeudgifter | G19: 0
A20: Øvrige i Region Nordjylland | B20: I alt | C20: =SUMIFS((C7:C19),(A7:A19),A20) -> 0 | D20: =SUMIFS((D7:D19),(A7:A19),A20) -> 0 | E20: =SUMIFS((E7:E19),(A7:A19),A20) -> 0 | F20: =SUMIFS((F7:F19),(A7:A19),A20) -> 0 | G20: 0
A21: Ikke fordelte udgifter og indtægter | G21: 0
A22: Ikke fordelte udgifter og indtægter | B22: Andre udgifter | G22: 0
A23: Ikke fordelte udgifter og indtægter | B23: Leasing- og lejeudgifter | C23: 18082.992 | D23: 87202.99 | E23: 176481.558 | F23: 155754.826 | G23: -69119.998 | H23: -79,3%▼
A24: Ikke fordelte udgifter og indtægter | B24: Huslejeudgifter | G24: 0
A25: Ikke fordelte udgifter og indtægter | B25: I alt | C25: =SUMIFS((C7:C24),(A7:A24),A25) -> 18082.992 | D25: =SUMIFS((D7:D24),(A7:A24),A25) -> 87202.99 | E25: =SUMIFS((E7:E24),(A7:A24),A25) -> 176481.558 | F25: =SUMIFS((F7:F24),(A7:A24),A25) -> 155754.826 | G25: -69119.998 | H25: -79,3%▼

Sheet Skema 6
A1: Region Nordjylland, somatiske sygehuse.
B2: Skema 6: Udgifter til andet end patientbehandling. (1.000 kr.)
A5: Sygehus | C5: 2023 | D5: 2022 | E5: 2021 | F5: 2020 | G5: Δ2022-2023 | H5: % afvigelse | I5: Begrundelse
A6: Aalborg Universitetshospital | G6: =IF(ISERROR(#REF! -#REF!)=TRUE,"",#REF! -#REF!) ->  | H6: =IF(ISERROR((((#REF! -#REF!)/#REF!)*100)=TRUE),"",IF((((#REF! -#REF!)/#REF!)*100)<-7,FIXED(((#REF! -#REF!)/#REF!)*100, 1,TRUE) &"%" & "▼",IF((((#REF! -#REF!)/#REF!)*100)>7,FIXED(((#REF! -#REF!)/#REF!)*100, 1,TRUE) &"%" &"▲",FIXED(((#REF! -#REF!)/#REF!)*100, 1,TRUE)&"%"))) -> 
A7: Aalborg Universitetshospital | B7: Skema 6.1: Center for voldsramte (Bispebjerg) | G7: =IF(ISERROR(C7- D7)=TRUE,"",C7 - D7) -> 0 | H7: =IF(ISERROR((((C7- D7)/D7)*100)=TRUE),"",IF((((C7- D7)/D7)*100)<-7,FIXED(((C7- D7)/D7)*100, 1,TRUE) &"%" & "▼",IF((((C7- D7)/D7)*100)>7,FIXED(((C7- D7)/D7)*100, 1,TRUE) &"%" &"▲",FIXED(((C7- D7)/D7)*100, 1,TRUE)&"%"))) -> 
A8: Aalborg Universitetshospital | B8: Skema 6.2: Ventilatørbistand i hjemmet, respiratorpatienter | G8: 0
A9: Aalborg Universitetshospital | B9: Skema 6.3: Blodprøvetagning i eget hjem | G9: 0
A10: Aalborg Universitetshospital | B10: Skema 6.4: Psykinfo + pårørende | G10: 0
A11: Aalborg Universitetshospital | B11: Skema 6.5: Leveret udstyr til patienter i eget hjem, ilt og sonderemedier | G11: 0
A12: Aalborg Universitetshospital | B12: Skema 6.6: Montebello (Nordsjællands Hospitaler) | G12: 0
A13: Aalborg Universitetshospital | B13: Skema 6.7: Satspulje korrektioner mellem år | G13: 0
A14: Aalborg Universitetshospital | B14: Skema 6.8: Klinisk farmakologisk rådgivning af praksissektoren | C14: 1455.928 | D14: 1246 | E14: 1081 | F14: 700 | G14: 209.928 | H14: 16,8%▲
A15: Aalborg Universitetshospital | B15: Skema 6.9: Tandregulering ifm. operation | G15: 0
A16: Aalborg Universitetshospital | B16: Skema 6.10: Giftlinjen | G16: 0
A17: Aalborg Universitetshospital | B17: Skema 6.11: Tjenestemandspensioner | G17: 0
A18: Aalborg Universitetshospital | B18: Skema 6.12: Art 4.6 Betalinger til staten | C18: 6514.093 | D18: 5689.681 | E18: 5400.156 | F18: 3086.934 | G18: 824.412 | H18: 14,5%▲
A19: Aalborg Universitetshospital | B19: Skema 6.13: Art 4.7 Betalinger til kommuner | C19: 6067.79 | D19: 2600.816 | E19: 6170.916 | F19: 3954.514 | G19: 3466.974 | H19: 133,3%▲
A20: Aalborg Universitetshospital | B20: Skema 6.14: Art 4.8 Betalinger til andre regioner | C20: 557007.628 | D20: 538790.482 | E20: 495988.444 | F20: 383277.355 | G20: 18217.146 | H20: 3,4%
A21: Aalborg Universitetshospital | B21: Skema 6.15: Art 7.6 Betalinger fra staten | C21: -4398.962 | D21: -4283.716 | E21: -4246.416 | F21: -3968.681 | G21: -115.246 | H21: 2,7%
A22: Aalborg Universitetshospital | B22: Skema 6.16: Art 7.7 Betalinger fra kommuner | C22: -3264.859 | D22: -3135.394 | E22: -3491.944 | F22: -1892.305 | G22: -129.465 | H22: 4,1%
A23: Aalborg Universitetshospital | B23: Skema 6.17: Art 7.8 Betalinger fra andre regioner | C23: -138923.819 | D23: -129442.838 | E23: -131642.698 | F23: -11847.878 | G23: -9480.981 | H23: 7,3%▲
A24: Aalborg Universitetshospital | B24: Skema 6.18: Betalinger til selvejende, private og udenlandske sygehuse | C24: 156712.003 | D24: 184691.44 | E24: 129567.907 | F24: 74348.603 | G24: -27979.437 | H24: -15,1%▼
A25: Aalborg Universitetshospital | B25: Skema 6.19: Dækningsafgift/ejendomsskat | C25: 12478.519 | D25: 12476.052 | E25: 12497.396 | F25: 11981.013 | G25: 2.467 | H25: 0,0%
A26: Aalborg Universitetshospital | B26: Skema 6.20: Forsikringer/erstatninger | G26: 0
A27: Aalborg Universitetshospital | B27: Skema 6.21: Vederlagsfri Lab. –ydelser og andre ydelser til praksissektoren | C27: 200600.508 | D27: 173671.484 | E27: 170430.081 | F27: 182042.17 | G27: 26929.024 | H27: 15,5%▲
A28: Aalborg Universitetshospital | B28: Skema 6.22: Patienttransport | C28: 83197.894 | D28: 64484.953 | E28: 82550.707 | F28: 79287.852 | G28: 18712.941 | H28: 29,0%▲
A29: Aalborg Universitetshospital | B29: Skema 6.23: Serviceydelser til/fra andre institutioner eller sygehuse udenfor regionen | G29: 0
A30: Aalborg Universitetshospital | B30: Skema 6.24: Udgifter til eksternt finansierede forskning | G30: 0
A31: Aalborg Universitetshospital | B31: Skema 6.25: Forebyggelse rettet mod praksissektoren og kommuner | C31: 73.622 | D31: 445.836 | E31: -99.557 | F31: 1991.632 | G31: -372.214 | H31: -83,5%▼
A32: Aalborg Universitetshospital | B32: Skema 6.26: Praksisreservelæger | G32: 0
A33: Aalborg Universitetshospital | B33: Skema 6.27: Præhospital | C33: 68.796 | D33: 86.765 | E33: 206.218 | F33: 845.767 | G33: -17.969 | H33: -20,7%▼
A34: Aalborg Universitetshospital | B34: Skema 6.28: Udgifter til Danske Regioner (Kontigent, MedCom, Fællesproj.) | G34: 0
A35: Aalborg Universitetshospital | B35: Skema 6.29: Hospice | C35: 676.931 | D35: 668.043 | E35: 641.149 | F35: 986.602 | G35: 8.888 | H35: 1,3%
A36: Aalborg Universitetshospital | B36: Skema 6.30: Konsulenter(Praksis) | G36: 0
A37: Aalborg Universitetshospital | B37: Skema 6.31: Videnskabsetisk Komité | G37: 0
A38: Aalborg Universitetshospital | B38: Skema 6.32: Tolkebistand | C38: 2175.713 | D38: 1380.666 | E38: 1283.599 | F38: 1250.042 | G38: 795.047 | H38: 57,6%▲
A39: Aalborg Universitetshospital | B39: Skema 6.33: Dansk Center for Partikelterapi | G39: =IF(ISERROR(C39- D39)=TRUE,"",C39 - D39) -> 0 | H39: =IF(ISERROR((((C39- D39)/D39)*100)=TRUE),"",IF((((C39- D39)/D39)*100)<-7,FIXED(((C39- D39)/D39)*100, 1,TRUE) &"%" & "▼",IF((((C39- D39)/D39)*100)>7,FIXED(((C39- D39)/D39)*100, 1,TRUE) &"%" &"▲",FIXED(((C39- D39)/D39)*100, 1,TRUE)&"%"))) -> 
A40: Aalborg Universitetshospital | B40: Skema 6.34: Politisk organisation – overførte udgifter fra funktion 4.10.01, 4.10.02 og 4.10.04 | G40: 0
A41: Aalborg Universitetshospital | B41: Skema 6.35: Øvrige udgifter, Region Sjælland | G41: 0
A42: Aalborg Universitetshospital | B42: Skema 6.36: Sundhedsydelser ifm. specialsektor | C42: 221.703 | D42: 257.715 | G42: -36.012 | H42: -14,0%▼
A43: Aalborg Universitetshospital | B43: Skema 6.37: Udgifter til primær sundhed fra skema 2 | G43: 0
A44: Aalborg Universitetshospital | B44: Skema 6.38: Udgifter til primær sundhed fra skema 3 | G44: 0
A45: Aalborg Universitetshospital | B45: Skema 6.39: Særlige udgifter ifm. COVID-19 | D45: 191932.394 | E45: 200210.744 | F45: 158924.892 | G45: -191932.394 | H45: -100,0%▼
A46: Aalborg Universitetshospital | B46: Skema 6.40: Udleveret udstyr/tilbehør ifm. cochlear implantater | C46: 1535.569 | D46: 2149.948 | E46: 1284.287 | G46: -614.379 | H46: -28,6%▼
A47: Aalborg Universitetshospital | B47: Skema 6.41: Luxturna-behandling, Rigshospitalet | G47: 0
A48: Aalborg Universitetshospital | B48: Skema 6.42: Udleveret medicin | C48: 246998.881 | D48: 199409.508 | E48: 303721.036 | G48: 47589.373 | H48: 23,9%▲
A49: Aalborg Universitetshospital | B49: Skema 6.43: Udgifter ifm. sundhedsklynger | G49: 0
A50: Aalborg Universitetshospital | B50: Skema 6.44: Ukrainske patienter under særlov eller asyl | G50: 0
A51: Aalborg Universitetshospital | B51: Skema 6.45: Udgifter ifm. de særlige pladser i psykiatrien | G51: 0
A52: Aalborg Universitetshospital | B52: Skema 6.46: Sikringsafdelingen, Region Sjælland | G52: 0
A53: Aalborg Universitetshospital | B53: Skema 6.47: Øvrige (Kan kun benyttes efter aftale med Sundhedsdatastyrelsen) | G53: 0
A54: Aalborg Universitetshospital | B54: Lukkede poster (må kun bruges af Sundhedsdatastyrelsen) | G54: 0
A55: Aalborg Universitetshospital | B55: I alt | C55: =SUMIFS((C7:C54),(A7:A54),A55) -> 1129197.938 | D55: =SUMIFS((D7:D54),(A7:A54),A55) -> 1243119.835 | E55: =SUMIFS((E7:E54),(A7:A54),A55) -> 1271553.025 | F55: =SUMIFS((F7:F54),(A7:A54),A55) -> 884968.512 | G55: -113921.897 | H55: -9,2%▼
A56: Regionshospital Nordjylland | G56: 0
A57: Regionshospital Nordjylland | B57: Skema 6.1: Center for voldsramte (Bispebjerg) | G57: 0
A58: Regionshospital Nordjylland | B58: Skema 6.2: Ventilatørbistand i hjemmet, respiratorpatienter | G58: 0
A59: Regionshospital Nordjylland | B59: Skema 6.3: Blodprøvetagning i eget hjem | G59: 0
A60: Regionshospital Nordjylland | B60: Skema 6.4: Psykinfo + pårørende | G60: 0
A61: Regionshospital Nordjylland | B61: Skema 6.5: Leveret udstyr til patienter i eget hjem, ilt og sonderemedier | F61: 197.683 | G61: 0
A62: Regionshospital Nordjylland | B62: Skema 6.6: Montebello (Nordsjællands Hospitaler) | G62: 0
A63: Regionshospital Nordjylland | B63: Skema 6.7: Satspulje korrektioner mellem år | G63: 0
A64: Regionshospital Nordjylland | B64: Skema 6.8: Klinisk farmakologisk rådgivning af praksissektoren | G64: 0
A65: Regionshospital Nordjylland | B65: Skema 6.9: Tandregulering ifm. operation | G65: 0
A66: Regionshospital Nordjylland | B66: Skema 6.10: Giftlinjen | G66: 0
A67: Regionshospital Nordjylland | B67: Skema 6.11: Tjenestemandspensioner | G67: 0
A68: Regionshospital Nordjylland | B68: Skema 6.12: Art 4.6 Betalinger til staten | C68: 409.942 | D68: 411.785 | E68: 260.352 | F68: 611.236 | G68: -1.843 | H68: -0,4%
A69: Regionshospital Nordjylland | B69: Skema 6.13: Art 4.7 Betalinger til kommuner | C69: 576.352 | D69: 93.741 | E69: 1019.704 | F69: 521.735 | G69: 482.611 | H69: 514,8%▲
A70: Regionshospital Nordjylland | B70: Skema 6.14: Art 4.8 Betalinger til andre regioner | C70: 1573.003 | D70: 1770.173 | E70: 20236.961 | F70: 5674.926 | G70: -197.17 | H70: -11,1%▼
A71: Regionshospital Nordjylland | B71: Skema 6.15: Art 7.6 Betalinger fra staten | C71: -2751.586 | D71: -2434.306 | E71: -2381.242 | F71: -2011.299 | G71: =IF(ISERROR(C71- D71)=TRUE,"",C71 - D71) -> -317.28 | H71: =IF(ISERROR((((C71- D71)/D71)*100)=TRUE),"",IF((((C71- D71)/D71)*100)<-7,FIXED(((C71- D71)/D71)*100, 1,TRUE) &"%" & "▼",IF((((C71- D71)/D71)*100)>7,FIXED(((C71- D71)/D71)*100, 1,TRUE) &"%" &"▲",FIXED(((C71- D71)/D71)*100, 1,TRUE)&"%"))) -> 13,0%▲
A72: Regionshospital Nordjylland | B72: Skema 6.16: Art 7.7 Betalinger fra kommuner | C72: -252.67 | D72: -334.942 | E72: -198.285 | G72: 82.272 | H72: -24,6%▼
A73: Regionshospital Nordjylland | B73: Skema 6.17: Art 7.8 Betalinger fra andre regioner | C73: -14779.001 | D73: -1620.576 | E73: -13522.405 | G73: -13158.425 | H73: 812,0%▲
A74: Regionshospital Nordjylland | B74: Skema 6.18: Betalinger til selvejende, private og udenlandske sygehuse | C74: 46209.918 | D74: 28271.77 | E74: 18491.92 | F74: 11056.135 | G74: 17938.148 | H74: 63,4%▲
A75: Regionshospital Nordjylland | B75: Skema 6.19: Dækningsafgift/ejendomsskat | C75: 7191.533 | D75: 7149.326 | E75: 6961.705 | F75: 6597.098 | G75: 42.207 | H75: 0,6%
A76: Regionshospital Nordjylland | B76: Skema 6.20: Forsikringer/erstatninger | C76: -0.454 | D76: -0.434 | E76: -0.43 | F76: -0.429 | G76: -0.02 | H76: 4,6%
A77: Regionshospital Nordjylland | B77: Skema 6.21: Vederlagsfri Lab. –ydelser og andre ydelser til praksissektoren | C77: 48988.477 | D77: 42840.727 | E77: 37401.543 | F77: 37661.231 | G77: 6147.75 | H77: 14,4%▲
A78: Regionshospital Nordjylland | B78: Skema 6.22: Patienttransport | C78: 12176.953 | D78: 10513.457 | E78: 9957.386 | F78: 9498.773 | G78: 1663.496 | H78: 15,8%▲
A79: Regionshospital Nordjylland | B79: Skema 6.23: Serviceydelser til/fra andre institutioner eller sygehuse udenfor regionen | G79: 0
A80: Regionshospital Nordjylland | B80: Skema 6.24: Udgifter til eksternt finansierede forskning | G80: 0
A81: Regionshospital Nordjylland | B81: Skema 6.25: Forebyggelse rettet mod praksissektoren og kommuner | G81: 0
A82: Regionshospital Nordjylland | B82: Skema 6.26: Praksisreservelæger | G82: 0
A83: Regionshospital Nordjylland | B83: Skema 6.27: Præhospital | D83: 1.837 | E83: 3.622 | F83: 12.664 | G83: -1.837 | H83: -100,0%▼
A84: Regionshospital Nordjylland | B84: Skema 6.28: Udgifter til Danske Regioner (Kontigent, MedCom, Fællesproj.) | G84: 0
A85: Regionshospital Nordjylland | B85: Skema 6.29: Hospice | C85: 5766.477 | D85: 5012.487 | E85: 4937.236 | F85: 4878.274 | G85: 753.99 | H85: 15,0%▲
A86: Regionshospital Nordjylland | B86: Skema 6.30: Konsulenter(Praksis) | G86: 0
A87: Regionshospital Nordjylland | B87: Skema 6.31: Videnskabsetisk Komité | G87: 0
A88: Regionshospital Nordjylland | B88: Skema 6.32: Tolkebistand | C88: 494.721 | D88: 433.066 | E88: 427.5 | F88: 477.317 | G88: 61.655 | H88: 14,2%▲
A89: Regionshospital Nordjylland | B89: Skema 6.33: Dansk Center for Partikelterapi | G89: 0
A90: Regionshospital Nordjylland | B90: Skema 6.34: Politisk organisation – overførte udgifter fra funktion 4.10.01, 4.10.02 og 4.10.04 | G90: 0
A91: Regionshospital Nordjylland | B91: Skema 6.35: Øvrige udgifter, Region Sjælland | G91: 0
A92: Regionshospital Nordjylland | B92: Skema 6.36: Sundhedsydelser ifm. specialsektor | G92: 0
A93: Regionshospital Nordjylland | B93: Skema 6.37: Udgifter til primær sundhed fra skema 2 | G93: 0
A94: Regionshospital Nordjylland | B94: Skema 6.38: Udgifter til primær sundhed fra skema 3 | G94: 0
A95: Regionshospital Nordjylland | B95: Skema 6.39: Særlige udgifter ifm. COVID-19 | D95: 63659.785 | E95: 71814.68 | F95: 35117.06 | G95: -63659.785 | H95: -100,0%▼
A96: Regionshospital Nordjylland | B96: Skema 6.40: Udleveret udstyr/tilbehør ifm. cochlear implantater | G96: 0
A97: Regionshospital Nordjylland | B97: Skema 6.41: Luxturna-behandling, Rigshospitalet | G97: 0
A98: Regionshospital Nordjylland | B98: Skema 6.42: Udleveret medicin | C98: 18138.945 | D98: 16540.088 | E98: 19933.605 | G98: 1598.857 | H98: 9,7%▲
A99: Regionshospital Nordjylland | B99: Skema 6.43: Udgifter ifm. sundhedsklynger | G99: 0
A100: Regionshospital Nordjylland | B100: Skema 6.44: Ukrainske patienter under særlov eller asyl | G100: 0
A101: Regionshospital Nordjylland | B101: Skema 6.45: Udgifter ifm. de særlige pladser i psykiatrien | G101: 0
A102: Regionshospital Nordjylland | B102: Skema 6.46: Sikringsafdelingen, Region Sjælland | G102: 0
A103: Regionshospital Nordjylland | B103: Skema 6.47: Øvrige (Kan kun benyttes efter aftale med Sundhedsdatastyrelsen) | G103: =IF(ISERROR(C103- D103)=TRUE,"",C103 - D103) -> 0 | H103: =IF(ISERROR((((C103- D103)/D103)*100)=TRUE),"",IF((((C103- D103)/D103)*100)<-7,FIXED(((C103- D103)/D103)*100, 1,TRUE) &"%" & "▼",IF((((C103- D103)/D103)*100)>7,FIXED(((C103- D103)/D103)*100, 1,TRUE) &"%" &"▲",FIXED(((C103- D103)/D103)*100, 1,TRUE)&"%"))) -> 
A104: Regionshospital Nordjylland | B104: Lukkede poster (må kun bruges af Sundhedsdatastyrelsen) | G104: 0
A105: Regionshospital Nordjylland | B105: I alt | C105: =SUMIFS((C7:C104),(A7:A104),A105) -> 123742.61 | D105: =SUMIFS((D7:D104),(A7:A104),A105) -> 172307.984 | E105: =SUMIFS((E7:E104),(A7:A104),A105) -> 175343.852 | F105: =SUMIFS((F7:F104),(A7:A104),A105) -> 110292.404 | G105: -48565.374 | H105: -28,2%▼
A106: Øvrige i Region Nordjylland | G106: 0
A107: Øvrige i Region Nordjylland | B107: Skema 6.1: Center for voldsramte (Bispebjerg) | G107: 0
A108: Øvrige i Region Nordjylland | B108: Skema 6.2: Ventilatørbistand i hjemmet, respiratorpatienter | G108: 0
A109: Øvrige i Region Nordjylland | B109: Skema 6.3: Blodprøvetagning i eget hjem | G109: 0
A110: Øvrige i Region Nordjylland | B110: Skema 6.4: Psykinfo + pårørende | G110: 0
A111: Øvrige i Region Nordjylland | B111: Skema 6.5: Leveret udstyr til patienter i eget hjem, ilt og sonderemedier | G111: 0
A112: Øvrige i Region Nordjylland | B112: Skema 6.6: Montebello (Nordsjællands Hospitaler) | G112: 0
A113: Øvrige i Region Nordjylland | B113: Skema 6.7: Satspulje korrektioner mellem år | G113: 0
A114: Øvrige i Region Nordjylland | B114: Skema 6.8: Klinisk farmakologisk rådgivning af praksissektoren | G114: 0
A115: Øvrige i Region Nordjylland | B115: Skema 6.9: Tandregulering ifm. operation | G115: 0
A116: Øvrige i Region Nordjylland | B116: Skema 6.10: Giftlinjen | G116: 0
A117: Øvrige i Region Nordjylland | B117: Skema 6.11: Tjenestemandspensioner | G117: 0
A118: Øvrige i Region Nordjylland | B118: Skema 6.12: Art 4.6 Betalinger til staten | G118: 0
A119: Øvrige i Region Nordjylland | B119: Skema 6.13: Art 4.7 Betalinger til kommuner | G119: 0
A120: Øvrige i Region Nordjylland | B120: Skema 6.14: Art 4.8 Betalinger til andre regioner | G120: 0
A121: Øvrige i Region Nordjylland | B121: Skema 6.15: Art 7.6 Betalinger fra staten | G121: 0
A122: Øvrige i Region Nordjylland | B122: Skema 6.16: Art 7.7 Betalinger fra kommuner | G122: 0
A123: Øvrige i Region Nordjylland | B123: Skema 6.17: Art 7.8 Betalinger fra andre regioner | G123: 0
A124: Øvrige i Region Nordjylland | B124: Skema 6.18: Betalinger til selvejende, private og udenlandske sygehuse | G124: 0
A125: Øvrige i Region Nordjylland | B125: Skema 6.19: Dækningsafgift/ejendomsskat | G125: 0
A126: Øvrige i Region Nordjylland | B126: Skema 6.20: Forsikringer/erstatninger | G126: 0
A127: Øvrige i Region Nordjylland | B127: Skema 6.21: Vederlagsfri Lab. –ydelser og andre ydelser til praksissektoren | G127: 0
A128: Øvrige i Region Nordjylland | B128: Skema 6.22: Patienttransport | G128: 0
A129: Øvrige i Region Nordjylland | B129: Skema 6.23: Serviceydelser til/fra andre institutioner eller sygehuse udenfor regionen | G129: 0
A130: Øvrige i Region Nordjylland | B130: Skema 6.24: Udgifter til eksternt finansierede forskning | G130: 0
A131: Øvrige i Region Nordjylland | B131: Skema 6.25: Forebyggelse rettet mod praksissektoren og kommuner | G131: 0
A132: Øvrige i Region Nordjylland | B132: Skema 6.26: Praksisreservelæger | G132: 0
A133: Øvrige i Region Nordjylland | B133: Skema 6.27: Præhospital | G133: 0
A134: Øvrige i Region Nordjylland | B134: Skema 6.28: Udgifter til Danske Regioner (Kontigent, MedCom, Fællesproj.) | G134: 0
A135: Øvrige i Region Nordjylland | B135: Skema 6.29: Hospice | G135: =IF(ISERROR(C135- D135)=TRUE,"",C135 - D135) -> 0 | H135: =IF(ISERROR((((C135- D135)/D135)*100)=TRUE),"",IF((((C135- D135)/D135)*100)<-7,FIXED(((C135- D135)/D135)*100, 1,TRUE) &"%" & "▼",IF((((C135- D135)/D135)*100)>7,FIXED(((C135- D135)/D135)*100, 1,TRUE) &"%" &"▲",FIXED(((C135- D135)/D135)*100, 1,TRUE)&"%"))) -> 
A136: Øvrige i Region Nordjylland | B136: Skema 6.30: Konsulenter(Praksis) | G136: 0
A137: Øvrige i Region Nordjylland | B137: Skema 6.31: Videnskabsetisk Komité | G137: 0
A138: Øvrige i Region Nordjylland | B138: Skema 6.32: Tolkebistand | G138: 0
A139: Øvrige i Region Nordjylland | B139: Skema 6.33: Dansk Center for Partikelterapi | G139: 0
A140: Øvrige i Region Nordjylland | B140: Skema 6.34: Politisk organisation – overførte udgifter fra funktion 4.10.01, 4.10.02 og 4.10.04 | G140: 0
A141: Øvrige i Region Nordjylland | B141: Skema 6.35: Øvrige udgifter, Region Sjælland | G141: 0
A142: Øvrige i Region Nordjylland | B142: Skema 6.36: Sundhedsydelser ifm. specialsektor | G142: 0
A143: Øvrige i Region Nordjylland | B143: Skema 6.37: Udgifter til primær sundhed fra skema 2 | G143: 0
A144: Øvrige i Region Nordjylland | B144: Skema 6.38: Udgifter til primær sundhed fra skema 3 | G144: 0
A145: Øvrige i Region Nordjylland | B145: Skema 6.39: Særlige udgifter ifm. COVID-19 | G145: 0
A146: Øvrige i Region Nordjylland | B146: Skema 6.40: Udleveret udstyr/tilbehør ifm. cochlear implantater | G146: 0
A147: Øvrige i Region Nordjylland | B147: Skema 6.41: Luxturna-behandling, Rigshospitalet | G147: 0
A148: Øvrige i Region Nordjylland | B148: Skema 6.42: Udleveret medicin | G148: 0
A149: Øvrige i Region Nordjylland | B149: Skema 6.43: Udgifter ifm. sundhedsklynger | G149: 0
A150: Øvrige i Region Nordjylland | B150: Skema 6.44: Ukrainske patienter under særlov eller asyl | G150: 0
A151: Øvrige i Region Nordjylland | B151: Skema 6.45: Udgifter ifm. de særlige pladser i psykiatrien | G151: 0
A152: Øvrige i Region Nordjylland | B152: Skema 6.46: Sikringsafdelingen, Region Sjælland | G152: 0
A153: Øvrige i Region Nordjylland | B153: Skema 6.47: Øvrige (Kan kun benyttes efter aftale med Sundhedsdatastyrelsen) | G153: 0
A154: Øvrige i Region Nordjylland | B154: Lukkede poster (må kun bruges af Sundhedsdatastyrelsen) | G154: 0
A155: Øvrige i Region Nordjylland | B155: I alt | C155: =SUMIFS((C7:C154),(A7:A154),A155) -> 0 | D155: =SUMIFS((D7:D154),(A7:A154),A155) -> 0 | E155: =SUMIFS((E7:E154),(A7:A154),A155) -> 0 | F155: =SUMIFS((F7:F154),(A7:A154),A155) -> 0 | G155: 0
A156: Ikke fordelte udgifter og indtægter | G156: 0
A157: Ikke fordelte udgifter og indtægter | B157: Skema 6.1: Center for voldsramte (Bispebjerg) | G157: 0
A158: Ikke fordelte udgifter og indtægter | B158: Skema 6.2: Ventilatørbistand i hjemmet, respiratorpatienter | C158: 116777.997 | D158: 108996.329 | E158: 110986.451 | F158: 109479.769 | G158: 7781.668 | H158: 7,1%▲
A159: Ikke fordelte udgifter og indtægter | B159: Skema 6.3: Blodprøvetagning i eget hjem | G159: 0
A160: Ikke fordelte udgifter og indtægter | B160: Skema 6.4: Psykinfo + pårørende | G160: 0
A161: Ikke fordelte udgifter og indtægter | B161: Skema 6.5: Leveret udstyr til patienter i eget hjem, ilt og sonderemedier | C161: 48579.476 | D161: 47905.176 | E161: 45106.195 | F161: 44887.933 | G161: 674.3 | H161: 1,4%
A162: Ikke fordelte udgifter og indtægter | B162: Skema 6.6: Montebello (Nordsjællands Hospitaler) | G162: 0
A163: Ikke fordelte udgifter og indtægter | B163: Skema 6.7: Satspulje korrektioner mellem år | G163: 0
A164: Ikke fordelte udgifter og indtægter | B164: Skema 6.8: Klinisk farmakologisk rådgivning af praksissektoren | G164: 0
A165: Ikke fordelte udgifter og indtægter | B165: Skema 6.9: Tandregulering ifm. operation | G165: 0
A166: Ikke fordelte udgifter og indtægter | B166: Skema 6.10: Giftlinjen | G166: 0
A167: Ikke fordelte udgifter og indtægter | B167: Skema 6.11: Tjenestemandspensioner | C167: =95438.287+27511.28 -> 122949.567 | D167: =121870.718+25762.544 -> 147633.262 | E167: =85455.217+23710.558 -> 109165.775 | F167: 152893.41 | G167: =IF(ISERROR(C167- D167)=TRUE,"",C167 - D167) -> -24683.695 | H167: =IF(ISERROR((((C167- D167)/D167)*100)=TRUE),"",IF((((C167- D167)/D167)*100)<-7,FIXED(((C167- D167)/D167)*100, 1,TRUE) &"%" & "▼",IF((((C167- D167)/D167)*100)>7,FIXED(((C167- D167)/D167)*100, 1,TRUE) &"%" &"▲",FIXED(((C167- D167)/D167)*100, 1,TRUE)&"%"))) -> -16,7%▼
A168: Ikke fordelte udgifter og indtægter | B168: Skema 6.12: Art 4.6 Betalinger til staten | G168: 0
A169: Ikke fordelte udgifter og indtægter | B169: Skema 6.13: Art 4.7 Betalinger til kommuner | C169: 700.881 | D169: 355.33 | G169: 345.551 | H169: 97,2%▲
A170: Ikke fordelte udgifter og indtægter | B170: Skema 6.14: Art 4.8 Betalinger til andre regioner | C170: 217722.506 | D170: 173632.854 | E170: 120091.252 | F170: 138437.958 | G170: 44089.652 | H170: 25,4%▲
A171: Ikke fordelte udgifter og indtægter | B171: Skema 6.15: Art 7.6 Betalinger fra staten | G171: 0
A172: Ikke fordelte udgifter og indtægter | B172: Skema 6.16: Art 7.7 Betalinger fra kommuner | C172: -21246.017 | D172: -21922.124 | E172: -28772.506 | F172: -17580.334 | G172: 676.107 | H172: -3,1%
A173: Ikke fordelte udgifter og indtægter | B173: Skema 6.17: Art 7.8 Betalinger fra andre regioner | C173: -16317.146 | D173: -20262.885 | E173: -15746.932 | F173: -11311.836 | G173: 3945.739 | H173: -19,5%▼
A174: Ikke fordelte udgifter og indtægter | B174: Skema 6.18: Betalinger til selvejende, private og udenlandske sygehuse | C174: 5042.291 | D174: 4249.669 | E174: 7381.55 | F174: 8380.76 | G174: 792.622 | H174: 18,7%▲
A175: Ikke fordelte udgifter og indtægter | B175: Skema 6.19: Dækningsafgift/ejendomsskat | G175: 0
A176: Ikke fordelte udgifter og indtægter | B176: Skema 6.20: Forsikringer/erstatninger | C176: =91636.601+50451.4729999999 -> 142088.074 | D176: =97756.477+33152.689 -> 130909.166 | E176: =95131.029+30562.698 -> 125693.727 | F176: 132205.972 | G176: 11178.908 | H176: 8,5%▲
A177: Ikke fordelte udgifter og indtægter | B177: Skema 6.21: Vederlagsfri Lab. –ydelser og andre ydelser til praksissektoren | G177: 0
A178: Ikke fordelte udgifter og indtægter | B178: Skema 6.22: Patienttransport | G178: 0
A179: Ikke fordelte udgifter og indtægter | B179: Skema 6.23: Serviceydelser til/fra andre institutioner eller sygehuse udenfor regionen | G179: 0
A180: Ikke fordelte udgifter og indtægter | B180: Skema 6.24: Udgifter til eksternt finansierede forskning | C180: 1015.155 | D180: 431.809 | E180: 1350.028 | F180: 1426.267 | G180: 583.346 | H180: 135,1%▲
A181: Ikke fordelte udgifter og indtægter | B181: Skema 6.25: Forebyggelse rettet mod praksissektoren og kommuner | G181: 0
A182: Ikke fordelte udgifter og indtægter | B182: Skema 6.26: Praksisreservelæger | C182: 85476.241 | D182: 76251.828 | E182: 76240.656 | F182: 70567.446 | G182: 9224.413 | H182: 12,1%▲
A183: Ikke fordelte udgifter og indtægter | B183: Skema 6.27: Præhospital | C183: 425244.9 | D183: 430019.156 | E183: 426501.378 | F183: 447044.767 | G183: -4774.256 | H183: -1,1%
A184: Ikke fordelte udgifter og indtægter | B184: Skema 6.28: Udgifter til Danske Regioner (Kontigent, MedCom, Fællesproj.) | C184: =44887.262+14712.299 -> 59599.561 | D184: =31900.279+14247.573 -> 46147.852 | E184: =22910.357+14019.47 -> 36929.827 | F184: 38869.04 | G184: 13451.709 | H184: 29,1%▲
A185: Ikke fordelte udgifter og indtægter | B185: Skema 6.29: Hospice | C185: 32181.35 | D185: 30531.181 | E185: 29707.96 | F185: 29124.359 | G185: 1650.169 | H185: 5,4%
A186: Ikke fordelte udgifter og indtægter | B186: Skema 6.30: Konsulenter(Praksis) | G186: 0
A187: Ikke fordelte udgifter og indtægter | B187: Skema 6.31: Videnskabsetisk Komité | G187: 0
A188: Ikke fordelte udgifter og indtægter | B188: Skema 6.32: Tolkebistand | C188: -56.312 | G188: -56.312
A189: Ikke fordelte udgifter og indtægter | B189: Skema 6.33: Dansk Center for Partikelterapi | G189: 0
A190: Ikke fordelte udgifter og indtægter | B190: Skema 6.34: Politisk organisation – overførte udgifter fra funktion 4.10.01, 4.10.02 og 4.10.04 | C190: =66009.307+181682.003 -> 247691.31 | D190: =72938.539+190050.953 -> 262989.492 | E190: =77682.711+177929.345 -> 255612.056 | F190: 239694.468 | G190: -15298.182 | H190: -5,8%
A191: Ikke fordelte udgifter og indtægter | B191: Skema 6.35: Øvrige udgifter, Region Sjælland | G191: 0
A192: Ikke fordelte udgifter og indtægter | B192: Skema 6.36: Sundhedsydelser ifm. specialsektor | C192: =7937.931+1047.173 -> 8985.104 | D192: =7798.245+1016.475 -> 8814.72 | E192: =6749.526+1004.819 -> 7754.345 | F192: 7535.854 | G192: 170.384 | H192: 1,9%
A193: Ikke fordelte udgifter og indtægter | B193: Skema 6.37: Udgifter til primær sundhed fra skema 2 | G193: 0
A194: Ikke fordelte udgifter og indtægter | B194: Skema 6.38: Udgifter til primær sundhed fra skema 3 | G194: 0
A195: Ikke fordelte udgifter og indtægter | B195: Skema 6.39: Særlige udgifter ifm. COVID-19 | D195: -23457.917 | E195: 73272.612 | F195: 83193.863 | G195: 23457.917 | H195: -100,0%▼
A196: Ikke fordelte udgifter og indtægter | B196: Skema 6.40: Udleveret udstyr/tilbehør ifm. cochlear implantater | G196: 0
A197: Ikke fordelte udgifter og indtægter | B197: Skema 6.41: Luxturna-behandling, Rigshospitalet | G197: 0
A198: Ikke fordelte udgifter og indtægter | B198: Skema 6.42: Udleveret medicin | G198: 0
A199: Ikke fordelte udgifter og indtægter | B199: Skema 6.43: Udgifter ifm. sundhedsklynger | G199: =IF(ISERROR(C199- D199)=TRUE,"",C199 - D199) -> 0 | H199: =IF(ISERROR((((C199- D199)/D199)*100)=TRUE),"",IF((((C199- D199)/D199)*100)<-7,FIXED(((C199- D199)/D199)*100, 1,TRUE) &"%" & "▼",IF((((C199- D199)/D199)*100)>7,FIXED(((C199- D199)/D199)*100, 1,TRUE) &"%" &"▲",FIXED(((C199- D199)/D199)*100, 1,TRUE)&"%"))) -> 
A200: Ikke fordelte udgifter og indtægter | B200: Skema 6.44: Ukrainske patienter under særlov eller asyl | G200: 0
A201: Ikke fordelte udgifter og indtægter | B201: Skema 6.45: Udgifter ifm. de særlige pladser i psykiatrien | G201: 0
A202: Ikke fordelte udgifter og indtægter | B202: Skema 6.46: Sikringsafdelingen, Region Sjælland | G202: 0
... 3 more rows

Sheet Skema 7
A1: Region Nordjylland, somatiske sygehuse.
B2: Skema 7: Vederlagsfrie ydelser mellem sygehusene. (1.000 kr.)
A5: Sygehus | B5: 2023 | D5: 2023 | E5: 2022 | G5: 2022 | H5: 2021 | J5: 2021 | K5: 2020 | M5: 2020
B6: Leverede | C6: Modtagne | D6: Lev. - Mod. | E6: Leverede | F6: Modtagne | G6: Lev. - Mod. | H6: Leverede | I6: Modtagne | J6: Lev. - Mod. | K6: Leverede | L6: Modtagne | M6: Lev. - Mod.
A7: Aalborg Universitetshospital | B7: 60811.133 | C7: 138878.784 | D7: =$B$7-$C$7 -> -78067.651 | E7: 61109.041 | F7: 138878.784 | G7: =$E$7-$F$7 -> -77769.743 | H7: 59533.352 | I7: 138878.784 | J7: =$H$7-$I$7 -> -79345.432 | K7: 41725.192 | L7: 138878.784 | M7: =$K$7-$L$7 -> -97153.592
A8: Regionshospital Nordjylland | B8: 142262.509 | C8: 41348.248 | D8: =$B$8-$C$8 -> 100914.261 | E8: 141619.436 | F8: 41348.248 | G8: =$E$8-$F$8 -> 100271.188 | H8: 141203.09 | I8: 41348.248 | J8: =$H$8-$I$8 -> 99854.842 | K8: 140364.83 | L8: 41348.248 | M8: =$K$8-$L$8 -> 99016.582
A9: Øvrige i Region Nordjylland | D9: =$B$9-$C$9 -> 0 | G9: =$E$9-$F$9 -> 0 | J9: =$H$9-$I$9 -> 0 | M9: =$K$9-$L$9 -> 0
A10: Ikke fordelte udgifter Region Nordjylland, somatik | D10: =$B$10-$C$10 -> 0 | G10: =$E$10-$F$10 -> 0 | J10: =$H$10-$I$10 -> 0 | M10: =$K$10-$L$10 -> 0
A11: I alt | B11: =SUM(B7:B10) -> 203073.642 | C11: =SUM(C7:C10) -> 180227.032 | D11: =SUM(D7:D10) -> 22846.61 | E11: =SUM(E7:E10) -> 202728.477 | F11: 180227.032 | G11: 22501.445 | H11: 200736.442 | I11: 180227.032 | J11: 20509.41 | K11: =SUM(K7:K10) -> 182090.022 | L11: 180227.032 | M11: 1862.99
A13: NB: Afstem med psykiatrien

Sheet Rapport
B2: Skema 1: Udgifter og indtægter på sygehusene/enhederne, eksklusiv omkostningssted 0001, Fælleskonto. (1.000 kr.)
C3: 2023 | D3: 2022 | E3: 2021 | F3: 2020
B4: Hovedart 1: Lønninger | C4: 5092179.92 | D4: 5081091.992 | E4: 4811104.79 | F4: 4605934.844
B5: Hovedart 2: Varekøb | C5: 968486.606 | D5: 950646.222 | E5: 917818.905 | F5: 861052.045
B6: Hovedart 4: Tjenesteydelser m.v. | C6: 891861.416 | D6: 921066.67 | E6: 780682.471 | F6: 681356.298
B7: Hovedart 5: Tilskud og overførsler | C7: 30 | D7: 30 | E7: 20 | F7: 50
B8: Hovedart 6: Finansudgifter | C8: 0 | D8: 0 | E8: 0 | F8: 0
B9: Hovedart 7: Indtægter | C9: -164259.319 | D9: -153320.251 | E9: -144242.138 | F9: -105514.407
B10: Hovedart 8: Finansindtægter | C10: -49.999 | D10: -84.665 | E10: -99.365 | F10: -91.665
B11: Hovedart 9: Interne udgifter og indtægter | C11: 1078438.993 | D11: 1054904.676 | E11: 1026309.613 | F11: 1053817.402
B12: I alt | C12: 7866687.617 | D12: 7854334.644 | E12: 7391594.276 | F12: 7096604.517
B14: Skema 2: Fællesudgifter og -indtægter vedrørende sygehusene. (1.000 kr.)
C15: 2023 | D15: 2022 | E15: 2021 | F15: 2020
B16: Hovedart 1: Lønninger | C16: 786213.804 | D16: 781510.406 | E16: 718833.112 | F16: 541964.353
B17: Hovedart 2: Varekøb | C17: 894212.13 | D17: 1072705.251 | E17: 1065211.715 | F17: 1039180.064
B18: Hovedart 4: Tjenesteydelser m.v. | C18: 1562168.511 | D18: 1700994.26 | E18: 1957269.181 | F18: 1765954.93
B19: Hovedart 5: Tilskud og overførsler | C19: 168838.543 | D19: 182814.539 | E19: 141314.972 | F19: 204873.023
B20: Hovedart 6: Finansudgifter | C20: 40164.815 | D20: 20522.368 | E20: 0 | F20: 0
B21: Hovedart 7: Indtægter | C21: -656723.342 | D21: -606015.463 | E21: -581539.439 | F21: -553483.876
B22: Hovedart 8: Finansindtægter | C22: -34004.149 | D22: -282367.758 | E22: -364987.826 | F22: -63134.344
B23: Hovedart 9: Interne udgifter og indtægter | C23: -1190008.144 | D23: -1181135.123 | E23: -1145072.725 | F23: -1164870.989
B24: I alt | C24: 1570862.168 | D24: 1689028.48 | E24: 1791028.99 | F24: 1770483.161
B26: Skema 3:Regionale fællesudgifter og -indtægter. (1.000 kr.)
C27: 2023 | D27: 2022 | E27: 2021 | F27: 2020
B28: 1.70.50: Andel af fællesudgifter | C28: 441569.899 | D28: 413432.214 | E28: 386903.604 | F28: 352151.623
B29: 1.60.40: Andel af central administration af sundhed (til og med 2019) | C29: 0 | D29: 0 | E29: 0 | F29: 0
B30: 1.60.41: Andel af øvrige udgifter og indtægter | C30: 5695.043 | D30: 4771.447 | E30: 4269.083 | F30: 4257.108
B31: 1.50.33: Andel af central administration af sundhed (ekskl. psykiatri) | C31: 41443.025 | D31: 45929.98 | E31: 46638.569 | F31: 41994.106
B32: 1.50.35: Administration af det psykiatriske område (kun central del) | C32: 0 | D32: 0 | E32: 0 | F32: 0
B33: I alt | C33: 488707.967 | D33: 464133.641 | E33: 437811.256 | F33: 398402.837
B35: Skema 4: Udgifter og indtægter til og fra psykiatriske afdelinger konteret på somatiske sygehuse. (1.000 kr.)
C36: 2023 | D36: 2022 | E36: 2021 | F36: 2020
B37: Korrektion | C37: 0 | D37: 0 | E37: 0 | F37: 0
B38: Lønudg. på psyk. afd.,somatiske sygehuse | C38: 0 | D38: 0 | E38: 0 | F38: 0
B39: Øvrige udg. til psyk. afd.,somatiske sygehuse | C39: 0 | D39: 0 | E39: 0 | F39: 0
B40: I alt | C40: 0 | D40: 0 | E40: 0 | F40: 0
B42: Skema 5: Leasing- og huslejeudgifter. (1.000 kr.)
C43: 2023 | D43: 2022 | E43: 2021 | F43: 2020
B44: Andre udgifter | C44: 0 | D44: 0 | E44: 0 | F44: 0
B45: Leasing- og lejeudgifter | C45: 34831.058 | D45: 124241.114 | E45: 204216.404 | F45: 184073.332
B46: Huslejeudgifter | C46: 18042.835 | D46: 16191.542 | E46: 15304.66 | F46: 14532.378
B47: I alt | C47: 52873.893 | D47: 140432.656 | E47: 219521.064 | F47: 198605.71
B49: Skema 6: Udgifter til andet end patientbehandling. (1.000 kr.)
C50: 2023 | D50: 2022 | E50: 2021 | F50: 2020
B51: Skema 6.1: Center for voldsramte (Bispebjerg) | C51: 0 | D51: 0 | E51: 0 | F51: 0
B52: Skema 6.2: Ventilatørbistand i hjemmet, respiratorpatienter | C52: 116777.997 | D52: 108996.329 | E52: 110986.451 | F52: 109479.769
B53: Skema 6.3: Blodprøvetagning i eget hjem | C53: 0 | D53: 0 | E53: 0 | F53: 0
B54: Skema 6.4: Psykinfo + pårørende | C54: 0 | D54: 0 | E54: 0 | F54: 0
B55: Skema 6.5: Leveret udstyr til patienter i eget hjem, ilt og sonderemedier | C55: 48579.476 | D55: 47905.176 | E55: 45106.195 | F55: 45085.616
B56: Skema 6.6: Montebello (Nordsjællands Hospitaler) | C56: 0 | D56: 0 | E56: 0 | F56: 0
B57: Skema 6.7: Satspulje korrektioner mellem år | C57: 0 | D57: 0 | E57: 0 | F57: 0
B58: Skema 6.8: Klinisk farmakologisk rådgivning af praksissektoren | C58: 1455.928 | D58: 1246 | E58: 1081 | F58: 700
B59: Skema 6.9: Tandregulering ifm. operation | C59: 0 | D59: 0 | E59: 0 | F59: 0
B60: Skema 6.10: Giftlinjen | C60: 0 | D60: 0 | E60: 0 | F60: 0
B61: Skema 6.11: Tjenestemandspensioner | C61: 122949.567 | D61: 147633.262 | E61: 109165.775 | F61: 152893.41
B62: Skema 6.12: Art 4.6 Betalinger til staten | C62: 6968.43 | D62: 6101.466 | E62: 5660.508 | F62: 3698.17
B63: Skema 6.13: Art 4.7 Betalinger til kommuner | C63: 7345.023 | D63: 3049.887 | E63: 7190.62 | F63: 4476.249
B64: Skema 6.14: Art 4.8 Betalinger til andre regioner | C64: 776303.137 | D64: 714193.509 | E64: 636316.657 | F64: 527390.239
B65: Skema 6.15: Art 7.6 Betalinger fra staten | C65: -7150.548 | D65: -6718.022 | E65: -6627.658 | F65: -5979.98
B66: Skema 6.16: Art 7.7 Betalinger fra kommuner | C66: -24763.546 | D66: -25392.46 | E66: -32462.735 | F66: -19472.639
B67: Skema 6.17: Art 7.8 Betalinger fra andre regioner | C67: -170019.966 | D67: -151326.299 | E67: -160912.035 | F67: -23159.714
B68: Skema 6.18: Betalinger til selvejende, private og udenlandske sygehuse | C68: 207964.212 | D68: 217212.879 | E68: 155441.377 | F68: 93785.498
B69: Skema 6.19: Dækningsafgift/ejendomsskat | C69: 19670.052 | D69: 19625.378 | E69: 19459.101 | F69: 18578.111
B70: Skema 6.20: Forsikringer/erstatninger | C70: 142087.62 | D70: 130908.732 | E70: 125693.297 | F70: 132205.543
B71: Skema 6.21: Vederlagsfri Lab. –ydelser og andre ydelser til praksissektoren | C71: 216594.603 | D71: 216512.211 | E71: 207831.624 | F71: 219703.401
B72: Skema 6.22: Patienttransport | C72: 95374.847 | D72: 74998.41 | E72: 92508.093 | F72: 88786.625
B73: Skema 6.23: Serviceydelser til/fra andre institutioner eller sygehuse udenfor regionen | C73: 0 | D73: 0 | E73: 0 | F73: 0
B74: Skema 6.24: Udgifter til eksternt finansierede forskning | C74: 1015.155 | D74: 431.809 | E74: 1350.028 | F74: 1426.267
B75: Skema 6.25: Forebyggelse rettet mod praksissektoren og kommuner | C75: 73.622 | D75: 445.836 | E75: -99.557 | F75: 1991.632
B76: Skema 6.26: Praksisreservelæger | C76: 85476.241 | D76: 76251.828 | E76: 76240.656 | F76: 70567.446
B77: Skema 6.27: Præhospital | C77: 425313.696 | D77: 430107.758 | E77: 426711.218 | F77: 447903.198
B78: Skema 6.28: Udgifter til Danske Regioner (Kontigent, MedCom, Fællesproj.) | C78: 59599.561 | D78: 46147.852 | E78: 36929.827 | F78: 38869.04
B79: Skema 6.29: Hospice | C79: 38624.758 | D79: 36211.711 | E79: 35286.345 | F79: 34989.235
B80: Skema 6.30: Konsulenter(Praksis) | C80: 0 | D80: 0 | E80: 0 | F80: 0
B81: Skema 6.31: Videnskabsetisk Komité | C81: 0 | D81: 0 | E81: 0 | F81: 0
B82: Skema 6.32: Tolkebistand | C82: 2614.122 | D82: 1813.732 | E82: 1711.099 | F82: 1727.359
B83: Skema 6.33: Dansk Center for Partikelterapi | C83: 0 | D83: 0 | E83: 0 | F83: 0
B84: Skema 6.34: Politisk organisation – overførte udgifter fra funktion 4.10.01, 4.10.02 og 4.10.04 | C84: 247691.31 | D84: 262989.492 | E84: 255612.056 | F84: 239694.468
B85: Skema 6.35: Øvrige udgifter, Region Sjælland | C85: 0 | D85: 0 | E85: 0 | F85: 0
B86: Skema 6.36: Sundhedsydelser ifm. specialsektor | C86: 9206.807 | D86: 9072.435 | E86: 7754.345 | F86: 7535.854
B87: Skema 6.37: Udgifter til primær sundhed fra skema 2 | C87: 0 | D87: 0 | E87: 0 | F87: 0
B88: Skema 6.38: Udgifter til primær sundhed fra skema 3 | C88: 0 | D88: 0 | E88: 0 | F88: 0
B89: Skema 6.39: Særlige udgifter ifm. COVID-19 | C89: 0 | D89: 232134.262 | E89: 345298.036 | F89: 277235.815
B90: Skema 6.40: Udleveret udstyr/tilbehør ifm. cochlear implantater | C90: 1535.569 | D90: 2149.948 | E90: 1284.287 | F90: 0
B91: Skema 6.41: Luxturna-behandling, Rigshospitalet | C91: 0 | D91: 0 | E91: 0 | F91: 0
B92: Skema 6.42: Udleveret medicin | C92: 265137.826 | D92: 215949.596 | E92: 323654.641 | F92: 0
B93: Skema 6.43: Udgifter ifm. sundhedsklynger | C93: 0 | D93: 0 | E93: 0 | F93: 0
B94: Skema 6.44: Ukrainske patienter under særlov eller asyl | C94: 0 | D94: 0 | E94: 0 | F94: 0
B95: Skema 6.45: Udgifter ifm. de særlige pladser i psykiatrien | C95: 0 | D95: 0 | E95: 0 | F95: 0
B96: Skema 6.46: Sikringsafdelingen, Region Sjælland | C96: 0 | D96: 0 | E96: 0 | F96: 0
B97: Skema 6.47: Øvrige (Kan kun benyttes efter aftale med Sundhedsdatastyrelsen) | C97: 0 | D97: 28492.189 | E97: 29700.242 | F97: 7278.72
B98: Lukkede poster (må kun bruges af Sundhedsdatastyrelsen) | C98: 0 | D98: 0 | E98: 0 | F98: 0
B99: I alt | C99: 2696425.499 | D99: 2847144.906 | E99: 2857871.493 | F99: 2477389.332

Sheet Rapport SGH
A1: 2023 | B1: Skema 1 | C1: Skema 2 | D1: Skema 3 | E1: Skema 4 | F1: Skema 5 | G1: Skema 6 | H1: Skema 7 | I1: I alt
A2: Aalborg Universitetshospital | B2: 6549859.123 | C2: 275477.918 | D2: 166494.749 | E2: 0 | F2: 31069.493 | G2: 1102295.821 | H2: -78067.651 | I2: =(SUM(B2:D2))- (SUM(E2:H2)) -> 5936534.127
A3: Regionshospital Nordjylland | B3: 1316828.494 | C3: 76270.549 | D3: 46808.989 | E3: 0 | F3: 3721.408 | G3: 117694.74 | H3: 100914.261 | I3: =(SUM(B3:D3))- (SUM(E3:H3)) -> 1217577.623
A4: Øvrige i Region Nordjylland | B4: 0 | C4: 0 | D4: 0 | E4: 0 | F4: 0 | G4: 0 | H4: 0 | I4: 0
A5: Ikke fordelte udgifter og indtægter | B5: 0 | C5: 1219113.701 | D5: 275404.229 | E5: 0 | F5: 18082.992 | G5: 1476434.938 | H5: 0 | I5: 0
A7: 2022
A8: Aalborg Universitetshospital | B8: 6528557.466 | C8: 348881.75 | D8: 155843.47 | E8: 0 | F8: 45190.653 | G8: 1243119.835 | H8: -77769.743 | I8: =(SUM(B8:D8))- (SUM(E8:H8)) -> 5822741.941
A9: Regionshospital Nordjylland | B9: 1325777.178 | C9: 85456.889 | D9: 44059.938 | E9: 0 | F9: 8039.013 | G9: 172307.984 | H9: 100271.188 | I9: 1174675.82
A10: Øvrige i Region Nordjylland | B10: 0 | C10: 0 | D10: 0 | E10: 0 | F10: 0 | G10: 0 | H10: 0 | I10: 0
A11: Ikke fordelte udgifter og indtægter | B11: 0 | C11: 1254689.841 | D11: 264230.233 | E11: 0 | F11: 87202.99 | G11: 1431717.087 | H11: 0 | I11: -0.003000000492

Sheet Afstemning af ikke fordelte
A1: Afstemning af Ikke fordelte indtægter- og udgifter
A2: 1.000 kr. | B2: 2023
A3: Skema 1 | B3: 0
A4: Skema 2 | B4: 1219113.701
A5: Skema 3 | B5: 275404.229
A6: Skema 4 | B6: 0
A7: Skema 5 | B7: 18082.992
A8: Skema 6 | B8: 1476434.938
A9: 1+2+3-4-5-6 | B9: =+B3+B4+B5-B6-B7-B8 -> 0

Sheet Afstemning øvrige region
A1: Afstemning af Øvrige i Region Nordjylland
A2: 1.000 kr. | B2: 2023
A3: Skema 1 | B3: 0
A4: Skema 2 | B4: 0
A5: Skema 3 | B5: 0
A6: Skema 4 | B6: 0
A7: Skema 5 | B7: 0
A8: Skema 6 | B8: 0
A9: 1+2+3-4-5-6 | B9: =+B3+B4+B5-B6-B7-B8 -> 0
